[Event "Romanian Superleague 2022"]
[Site "Oradea"]
[Date "2022.09.21"]
[Round "1.29"]
[White "Ileana, George"]
[Black "Stoleriu, George"]
[Result "1-0"]
[ECO "B10"]
[WhiteElo "2301"]
[BlackElo "2392"]
[Annotator "TA"]
[PlyCount "103"]
[EventDate "2022.09.21"]
[EventType "team-tourn"]
[EventCountry "ROU"]
[SourceTitle "playchess.com"]
[Source "ChessBase"]
[SourceQuality "1"]
[TimeControl "40/5400+30:1800+30"]

{[%evp 9,103,10,12,-11,10,18,25,14,16,0,31,28,30,25,31,29,29,30,31,23,44,29,63,62,59,55,78,68,80,62,95,92,89,108,97,98,204,211,204,204,187,171,166,170,183,180,172,172,251,240,225,197,300,300,265,241,425,389,434,427,339,339,472,466,489,481,641,627,610,574,1120,968,2024,1934,2540,2642,12841,12841,12842,12842,12843,12843,12843,12844,12844,12845,12845,12845,12846,12846,12847,12847,12848,12848,12849,12849]} 1. e4 {[%emt 0:00:04]} c6 {[%emt 0:00:08]} 2. Nf3 {[%emt 0:00:21]} d5 {[%emt 0:00:05]} 3. d3 {[%emt 0:00:02]} dxe4 {[%emt 0:00:11]} 4. dxe4 {[%emt 0:00:05]} Qxd1+ {[%emt 0:00:04]} 5. Kxd1 {[%emt 0:00:05]} Nf6 {[%emt 0:00:02]} 6. Nbd2 {[%emt 0:00:24] B10: Caro-Kann: 2 d3 and 2 c4.} g6 {[%emt 0:00:06] 6...g6 is better than 6...Bg4.} 7. Ne5 {[%emt 0:08:46]} Nbd7 {[%emt 0:00:24]} 8. Nd3 {[%emt 0:00:05] White has an edge.} Ng4 {[%emt 0:00:44]} 9. a4 {[%emt 0:01:55]} Nde5 {[%emt 0:15:25]} (9... Nc5 $5 {[%cal Rc5d3]} 10. Ke1 Nxd3+ 11. Bxd3 Bg7 $11) 10. Nxe5 {[%emt 0:02:56]} Nxe5 {[%emt 0:00:13]} 11. Nc4 {[%emt 0:00:11] [#]} Bg7 $146 {[%emt 0:08:12][%cal Bf8g7,Bg7e5,Be5c7][%mdl 32]} ({Predecessor:} 11... Bg4+ 12. Ke1 Nxc4 13. Bxc4 Bg7 14. f3 Bd7 15. h4 h5 16. c3 Bh6 17. Bxh6 Rxh6 {1-0 (40) Khanin,S (2517)-Lee,A (2293) Philadelphia 2022}) 12. Nxe5 {[%emt 0:01:42]} Bxe5 {[%emt 0:00:07]} 13. Bc4 {[%emt 0:06:14]} a5 {[%emt 0:07:46]} 14. c3 {[%emt 0:00:17]} Bc7 {[%emt 0:07:39]} 15. Bh6 {[%emt 0:01:56]} Be6 {[%emt 0:24:58]} 16. Bxe6 {[%emt 0:00:15]} fxe6 {[%emt 0:00:02]} 17. h4 {[%emt 0:00:20]} O-O-O+ {[%emt 0:01:10]} 18. Ke2 {[%emt 0:00:20] Black is on the road to losing.} Rhg8 {[%emt 0:00:54]} 19. Rh3 {[%emt 0:00:34]} Be5 {[%emt 0:07:20]} 20. Rf3 {[%emt 0:01:16]} Bf6 {[%emt 0:01:22]} 21. Rh1 {[%emt 0:00:06]} Rd7 {[%emt 0:11:21]} 22. g4 {[%emt 0:03:25]} g5 {[%emt 0:10:27]} (22... b5 $16) 23. Bxg5 {[%emt 0:05:04]} Bxg5 {[%emt 0:00:09]} 24. hxg5 {[%emt 0:00:05]} Rxg5 $18 {[%emt 0:00:02][%mdl 4096] Endgame KRR-KRR} 25. Rg3 {[%emt 0:00:49]} (25. Rxh7 $6 Rxg4 26. Ke3 Rg1 $14) 25... Rg7 {[%emt 0:02:10]} 26. f3 {[%emt 0:01:28]} b5 {[%emt 0:01:37]} 27. axb5 {[%emt 0:00:28]} ({Don't play} 27. Rgh3 $6 bxa4 28. Ke3 (28. Rxh7 Rxh7 29. Rxh7 Rb7 $11) 28... Rb7 $16) 27... Rb7 {[%emt 0:00:02]} 28. Rh5 {[%emt 0:02:20]} ({Don't take} 28. bxc6 Rxb2+ 29. Ke3 Rb6 $16) 28... Rxb5 {[%emt 0:00:17]} (28... cxb5 {is a better defense.} 29. Rg1 a4 30. Rc5+ Kb8) 29. Rxb5 {[%emt 0:00:10]} cxb5 {[%emt 0:00:01] KR-KR} 30. Rh3 {[%emt 0:00:07]} Kd7 {[%emt 0:00:41]} (30... b4 {was called for.} 31. Rh5 bxc3) 31. Rh5 {[%emt 0:00:36]} Kc6 {[%emt 0:00:01]} 32. Ke3 {[%emt 0:00:13]} Rf7 $2 {[%emt 0:00:20]} (32... b4 {was necessary.} 33. Rxa5 bxc3 34. bxc3 Kd6) 33. Rh6 {[%emt 0:00:33]} Kd7 {[%emt 0:01:04]} 34. f4 {[%emt 0:00:05]} Rg7 {[%emt 0:00:08] [#]} 35. Kf3 {[%emt 0:02:10]} Rf7 {[%emt 0:01:49]} 36. Rh5 {[%emt 0:01:11] White is clearly winning.} Kc6 {[%emt 0:00:03]} 37. Re5 {[%emt 0:00:09]} Rf6 {[%emt 0:01:01]} 38. g5 {[%emt 0:00:05]} Rg6 {[%emt 0:00:01]} 39. Kg4 {[%emt 0:00:09] [#] Hoping for f5.} Kb6 {[%emt 0:01:05]} 40. Kh5 {[%emt 0:00:00]} a4 {[%emt 0:00:00]} 41. f5 {[%emt 0:02:55]} exf5 {[%emt 0:11:21]} 42. exf5 {[%emt 0:00:05]} Rd6 {[%emt 0:00:59]} 43. Re6 {[%emt 0:04:23]} Rxe6 {[%emt 0:01:17]} 44. fxe6 {[%emt 0:00:06] KP-KP} Kc5 {[%emt 0:00:01]} 45. Kh6 {[%emt 0:00:07]} Kc4 {[%emt 0:00:17]} 46. Kxh7 {[%emt 0:00:04]} Kb3 {[%emt 0:00:02]} 47. g6 {[%emt 0:00:05]} Kxb2 {[%emt 0:00:03]} 48. g7 {[%emt 0:00:05]} a3 {[%emt 0:00:03]} 49. g8=Q {[%emt 0:00:08]} a2 {[%emt 0:00:55]} 50. Qg2+ {[%emt 0:00:06]} Kb3 {[%emt 0:01:02]} 51. Qd5+ {[%emt 0:00:13]} Ka3 {[%emt 0:00:11]} 52. Qxb5 {[%emt 0:00:17] Weighted Error Value: White=0.05 (flawless) /Black=0.38} 1-0

[Event "Romanian Superleague 2022"]
[Site "Oradea"]
[Date "2022.09.21"]
[Round "1.30"]
[White "Ungureanu, Vlad"]
[Black "Pisu, Robert-Daniel"]
[Result "1/2-1/2"]
[ECO "A13"]
[WhiteElo "2287"]
[BlackElo "2223"]
[Annotator "TA"]
[PlyCount "91"]
[EventDate "2022.09.21"]
[EventType "team-tourn"]
[EventCountry "ROU"]
[SourceTitle "playchess.com"]
[Source "ChessBase"]
[SourceQuality "1"]
[TimeControl "40/5400+30:1800+30"]

{[%evp 19,91,-4,-7,-23,-15,-16,-21,-49,-46,-37,-29,-37,-27,-37,-32,-40,-39,-48,-37,-43,-34,-67,-45,-61,-57,-66,-58,-48,-57,-63,0,-15,-22,-42,-37,-85,-87,-99,-61,-93,-62,-91,-66,-89,-73,-74,0,0,0,0,0,0,0,0,0,0,0,0,0,0,0,0,0,0,0,0,0,0,0,0,0,0,0,0]} 1. Nf3 {[%emt 0:00:11]} d5 {[%emt 0:00:49]} 2. c4 {[%emt 0:00:15]} e6 {[%emt 0:01:15]} 3. e3 {[%emt 0:02:53]} Nf6 {[%emt 0:01:14]} 4. b3 {[%emt 0:03:51]} Be7 {[%emt 0:04:06]} 5. Bb2 {[%emt 0:00:37]} O-O {[%emt 0:00:20]} 6. Be2 {[%emt 0:01:13]} c5 {[%emt 0:02:06]} 7. O-O {[%emt 0:01:17]} b6 {[%emt 0:03:39]} 8. d4 {[%emt 0:03:16]} cxd4 {[%emt 0:11:17]} 9. exd4 {[%emt 0:03:34]} Bb7 {[%emt 0:09:27]} 10. Nc3 {[%emt 0:19:09]} Nc6 {[%emt 0:07:26]} 11. Ne5 {[%emt 0:04:05] A13: English Opening: 1...e6.} dxc4 {[%emt 0:04:48]} 12. Bf3 {[%emt 0:12:43] [#]} Qc8 $146 {[%emt 0:08:27]} ({Predecessor:} 12... Rc8 13. Bxc6 Bxc6 14. bxc4 Bb7 15. a4 Nd7 16. Nxd7 Qxd7 17. d5 Rxc4 18. dxe6 Qxe6 {1-0 (58) Kalajzic,I (2112)-Martin Carmona,G (2326) Chess.com INT 2021}) 13. bxc4 {[%emt 0:06:58]} Nxe5 {[%emt 0:02:06]} 14. dxe5 {[%emt 0:03:02]} Bxf3 {[%emt 0:02:19]} 15. Qxf3 {[%emt 0:00:08]} Nd7 {[%emt 0:00:06]} 16. Qe2 {[%emt 0:06:30]} Qc6 {[%emt 0:12:41]} 17. Rfd1 {[%emt 0:02:40]} Nc5 {[%emt 0:03:42]} 18. Nb5 {[%emt 0:07:28]} a6 {[%emt 0:06:10]} 19. Nd6 {[%emt 0:06:20]} Rad8 {[%emt 0:01:22]} 20. Qg4 {[%emt 0:02:04]} f6 {[%emt 0:10:14] [#] White must now prevent ...fxe5.} 21. Ba3 {[%emt 0:09:21]} Bxd6 {[%emt 0:03:10]} 22. exd6 {[%emt 0:00:03]} Rxd6 {[%emt 0:00:11]} 23. Rxd6 {[%emt 0:00:55]} Qxd6 {[%emt 0:00:01]} 24. Rd1 {[%emt 0:00:09]} Qe7 {[%emt 0:01:47]} ({Black should try} 24... Qe5 $15) 25. h4 {[%emt 0:00:10]} Rc8 {[%emt 0:01:58]} 26. h5 {[%emt 0:00:51]} h6 {[%emt 0:00:41]} 27. Bxc5 {[%emt 0:01:51]} (27. Rb1 $15 {should be considered.}) 27... Rxc5 $15 {[%emt 0:01:10][%mdl 4096] Endgame KQR-KQR} 28. Qf3 {[%emt 0:00:12]} Rc8 {[%emt 0:00:39]} 29. Qe4 {[%emt 0:00:33]} Kh8 {[%emt 0:00:50]} 30. Rd4 {[%emt 0:00:57]} Rd8 {[%emt 0:00:25]} 31. Qd3 {[%emt 0:00:44]} Rxd4 {[%emt 0:00:19]} 32. Qxd4 $17 {[%emt 0:00:02] [#] KQ-KQ} Qc5 {[%emt 0:00:45]} (32... Qc7 $1 $17) 33. Qd8+ $11 {[%emt 0:00:36] The position is equal.} Kh7 {[%emt 0:00:01]} 34. Qe8 $1 {[%emt 0:00:09]} Qf5 {[%emt 0:00:56]} 35. a4 {[%emt 0:01:35]} a5 {[%emt 0:00:55]} 36. f3 $1 {[%emt 0:01:00]} Qc5+ {[%emt 0:00:14]} 37. Kh2 {[%emt 0:00:25]} Qe5+ {[%emt 0:00:43]} 38. Kg1 $1 {[%emt 0:00:52]} Qe3+ {[%emt 0:00:33]} 39. Kh2 {[%emt 0:00:15]} Qe5+ {[%emt 0:00:31]} 40. Kg1 {[%emt 0:00:00]} Qe1+ {[%emt 0:00:00]} 41. Kh2 {[%emt 0:00:11]} Qh4+ {[%emt 0:06:25]} 42. Kg1 {[%emt 0:00:06]} Qd4+ {[%emt 0:00:41]} 43. Kh2 {[%emt 0:00:20]} Qf4+ {[%emt 0:02:32]} 44. Kg1 {[%emt 0:00:32]} Qxc4 {[%emt 0:04:28]} 45. Qg6+ {[%emt 0:00:17]} Kg8 {[%emt 0:00:03]} (45... Kh8 $5 46. Qe8+ $8 Kh7 $11) 46. Qe8+ {[%emt 0:00:06] Weighted Error Value: White=0.10 (very precise) /Black=0.10 (very precise)} 1/2-1/2

[Event "Romanian Superleague 2022"]
[Site "Oradea"]
[Date "2022.09.22"]
[Round "2.1"]
[White "Tarlev, Konstantin"]
[Black "Deac, Bogdan-Daniel"]
[Result "1/2-1/2"]
[ECO "D45"]
[WhiteElo "2576"]
[BlackElo "2710"]
[Annotator "TA"]
[PlyCount "48"]
[EventDate "2022.09.21"]
[EventType "team-tourn"]
[EventCountry "ROU"]
[SourceTitle "playchess.com"]
[Source "ChessBase"]
[SourceQuality "1"]
[TimeControl "40/5400+30:1800+30"]

{[%evp 10,48,15,2,14,11,6,10,13,11,19,0,3,0,9,13,21,18,21,6,11,12,0,0,0,0,0,0,0,0,0,-14,0,0,17,16,12,14,20,2,2]} 1. d4 {[%emt 0:02:41]} Nf6 {[%emt 0:00:02]} 2. c4 {[%emt 0:00:05]} e6 {[%emt 0:00:05]} 3. Nf3 {[%emt 0:00:05]} d5 {[%emt 0:00:05]} 4. Nc3 {[%emt 0:00:04]} c6 {[%emt 0:00:11]} 5. e3 {[%emt 0:00:12]} Nbd7 {[%emt 0:00:04]} 6. Qc2 {[%emt 0:00:18] The position is equal.} h6 {[%emt 0:01:33] D45: Semi-Slav: 5 e3.} 7. Be2 {[%emt 0:03:33]} dxc4 {[%emt 0:04:22]} 8. Bxc4 {[%emt 0:00:35]} b5 {[%emt 0:03:43]} 9. Bd3 {[%emt 0:20:06]} Bb7 {[%emt 0:01:37]} 10. O-O {[%emt 0:01:47]} a6 {[%emt 0:03:39]} 11. Ne4 {[%emt 0:25:27]} Rc8 {[%emt 0:18:58] [#]} 12. Nxf6+ $146 {[%emt 0:09:35]} ({Predecessor:} 12. Rd1 Nxe4 13. Bxe4 Nf6 14. Bd3 Qb6 15. Qe2 c5 16. a4 c4 17. Bc2 Be7 18. Ne5 {1-0 (37) Simensen,V (1969)-Shehzad,A (1533) Kristiansund 2017}) 12... Nxf6 {[%emt 0:05:40]} 13. a4 {[%emt 0:01:11]} Be7 {[%emt 0:57:01]} ({Resist} 13... c5 14. axb5 a5 15. Qa4 $16) 14. Qe2 {[%emt 0:05:06]} O-O $1 {[%emt 0:00:00]} 15. Bd2 {[%emt 0:00:52]} (15. Rd1 {is more complex.} Qc7 16. b3 c5 17. dxc5 Qxc5 18. axb5 axb5 19. Bb2) 15... c5 {[%emt 0:00:00] Prevents b4.} 16. axb5 {[%emt 0:01:11]} axb5 {[%emt 0:00:00]} 17. Bxb5 {[%emt 0:00:18]} Bxf3 {[%emt 0:00:00][%mdl 64] [#] Remove Defender} 18. Qxf3 {[%emt 0:01:34]} cxd4 {[%emt 0:00:00]} 19. exd4 {[%emt 0:01:38]} Qxd4 {[%emt 0:00:00]} 20. Bc3 {[%emt 0:01:46] This bishop pair is nice.} Qe4 {[%emt 0:00:00]} 21. Be2 {[%emt 0:01:53]} Qh4 {[%emt 0:00:00]} 22. g3 {[%emt 0:01:47]} Qe4 {[%emt 0:00:00]} 23. Rfd1 {[%emt 0:01:56]} Rb8 {[%emt 0:00:00]} 24. Rd4 {[%emt 0:00:44]} Qxf3 {[%emt 0:00:00] An interesting draw.  Weighted Error Value: White=0.05 (flawless) /Black=0.05 (flawless)} 1/2-1/2

[Event "Romanian Superleague 2022"]
[Site "Oradea"]
[Date "2022.09.22"]
[Round "2.2"]
[White "Miroshnichenko, Evgenij"]
[Black "Ionescu, Constantin"]
[Result "1-0"]
[ECO "C10"]
[WhiteElo "2597"]
[BlackElo "2415"]
[Annotator "TA"]
[PlyCount "51"]
[EventDate "2022.09.21"]
[EventType "team-tourn"]
[EventCountry "ROU"]
[SourceTitle "playchess.com"]
[Source "ChessBase"]
[SourceQuality "1"]
[TimeControl "40/5400+30:1800+30"]

{[%evp 15,50,22,29,29,57,18,43,20,16,11,13,6,121,160,185,185,183,184,191,204,185,190,323,292,233,161,279,268,611,607,569,550,29983,29984,29984,29985,29999]} 1. e4 {[%emt 0:00:05]} e6 {[%emt 0:01:20]} 2. d4 {[%emt 0:00:39]} d5 {[%emt 0:00:09]} 3. Nc3 {[%emt 0:00:40][%cal Bb1c3,Bc3e4,Be4g5,Bg5f3,Bf3d4,Bd4e6][%mdl 32]} dxe4 {[%emt 0:00:43]} 4. Nxe4 {[%emt 0:00:14]} Bd7 {[%emt 0:00:08]} 5. Nf3 {[%emt 0:01:56]} Bc6 {[%emt 0:00:19]} 6. Bd3 {[%emt 0:00:16]} Nd7 {[%emt 0:00:07]} 7. Qe2 {[%emt 0:06:40]} Ngf6 {[%emt 0:01:00]} 8. Neg5 {[%emt 0:05:01]} Bxf3 {[%emt 0:18:27]} 9. Nxf3 {[%emt 0:00:11] C10: French with 3 Nc3: Unusual Black 3rd moves and 3...dxe4.} Be7 {[%emt 0:00:34]} 10. Bd2 {[%emt 0:09:45]} O-O {[%emt 0:01:09]} 11. g4 {[%emt 0:04:59][%cal Bg2g4,Bg4g5][%mdl 32] White is slightly better.} c5 {[%emt 0:02:52]} 12. g5 {[%emt 0:01:27]} (12. c3 {is interesting.} Nxg4 13. Rg1 Ngf6 14. Bh6) 12... Nh5 {[%emt 0:01:36]} 13. O-O-O {[%emt 0:04:00] [#]} cxd4 $146 {[%emt 0:02:23]} (13... g6 $11) ({Predecessor:} 13... Qc7 14. Ne5 g6 15. Nxd7 Qxd7 16. dxc5 Bxc5 17. Bc3 Qc7 18. Kb1 Rfd8 19. Qf3 b6 {½-½ (38) Tirard,H (2399)-Foisor,O (2404) Creon 2000}) 14. Nxd4 $16 {[%emt 0:01:53]} g6 {[%emt 0:05:16] [#]} 15. Nxe6 {[%emt 0:05:25][%mdl 512]} fxe6 {[%emt 0:03:19]} 16. Qxe6+ {[%emt 0:00:13]} Rf7 {[%emt 0:00:32]} 17. Bc4 {[%emt 0:00:25][%mdl 1024] White has strong compensation.} Qe8 {[%emt 0:00:29]} 18. Rhe1 {[%emt 0:01:32] Strongly threatening Qxe7.} Kf8 {[%emt 0:00:20]} (18... Rc8 {was called for.} 19. Re4 (19. Qxf7+ Qxf7 20. Bxf7+ Kxf7 $14) 19... Nf8) 19. f4 {[%emt 0:05:25]} Nb6 {[%emt 0:06:48]} 20. Qe5 $40 {[%emt 0:12:30][%cal Re5h8][%mdl 128] Black is in trouble. The board is on fire.} ({Not} 20. Qxf7+ Qxf7 21. Bxf7 Kxf7 $14) 20... Rg7 {[%emt 0:16:52]} (20... Ng7 $142 21. Bxf7 Qxf7) 21. Bb3 $18 {[%emt 0:03:14] A strong pair of Bishops.} Rc8 $2 {[%emt 0:00:45]} (21... Nd7 22. Qd4 Nc5) 22. f5 {[%emt 0:02:45] f6 is the strong threat.} Rc5 {[%emt 0:11:33]} 23. Qd4 {[%emt 0:00:59]} Rxf5 {[%emt 0:00:33] [#]} 24. Rxe7 {[%emt 0:00:26][%mdl 576] Remove Defender. White mates.} Qxe7 {[%emt 0:03:29]} 25. Bb4 {[%emt 0:00:33][%mdl 64] Deflection} Qxb4 {[%emt 0:00:25]} 26. Qd8# {[%emt 0:32:17] Black did not feel at home in the position after the opening.  Weighted Error Value: White=0.13 (very precise) /Black=0.91} 1-0

[Event "Romanian Superleague 2022"]
[Site "Oradea"]
[Date "2022.09.22"]
[Round "2.3"]
[White "Soltanici, Ruslan"]
[Black "Szabo, Gergely-Andras-Gyula"]
[Result "1/2-1/2"]
[ECO "E63"]
[WhiteElo "2333"]
[BlackElo "2512"]
[Annotator "TA"]
[PlyCount "35"]
[EventDate "2022.09.21"]
[EventType "team-tourn"]
[EventCountry "ROU"]
[SourceTitle "playchess.com"]
[Source "ChessBase"]
[SourceQuality "1"]
[TimeControl "40/5400+30:1800+30"]

{[%evp 15,35,10,55,50,50,55,57,56,59,64,74,68,75,35,30,34,30,32,41,33,43,0]} 1. Nf3 {[%emt 0:00:09]} Nf6 {[%emt 0:00:09]} 2. c4 {[%emt 0:00:34]} g6 {[%emt 0:00:07]} 3. d4 {[%emt 0:02:18]} Bg7 {[%emt 0:00:11]} 4. g3 {[%emt 0:00:18]} O-O {[%emt 0:00:14]} 5. Bg2 {[%emt 0:00:06]} d6 {[%emt 0:01:55]} 6. O-O {[%emt 0:00:28]} Nc6 {[%emt 0:00:14]} 7. Nc3 {[%emt 0:01:01]} a6 {[%emt 0:02:05]} 8. Qd3 {[%emt 0:03:31] 8.Bf4 is setting a new trend.} Bf5 {[%emt 0:05:30]} (8... b5 $5) 9. e4 {[%emt 0:02:22] E63: King's Indian: Fianchetto: Panno Variation with 7...a6.} Bg4 {[%emt 0:00:08]} 10. Be3 {[%emt 0:01:56]} Bxf3 {[%emt 0:06:00]} 11. Bxf3 {[%emt 0:00:21]} Nd7 {[%emt 0:00:37]} 12. Bg2 {[%emt 0:09:22]} e5 {[%emt 0:08:07][%cal Re5d4]} 13. d5 {[%emt 0:00:50]} Nd4 {[%emt 0:01:00]} 14. Ne2 {[%emt 0:10:04] [#]} c5 $146 {[%emt 0:05:38]} ({Predecessor:} 14... Nc5 15. Qd2 Nxe2+ 16. Qxe2 f5 17. b4 Nxe4 18. Bxe4 fxe4 19. Qg4 Qf6 20. Qxe4 Qf5 21. Qxf5 gxf5 {1-0 (62) Khalifman,A (2614)-Assaubayeva,B (2369) Batumi 2018}) 15. dxc6 {[%emt 0:05:07]} Nc5 {[%emt 0:00:18]} 16. Qd2 {[%emt 0:05:21][%cal Re2d4]} Nxe2+ {[%emt 0:03:16]} 17. Qxe2 {[%emt 0:02:28] aiming for Rad1.} bxc6 {[%emt 0:00:04]} 18. Bxc5 {[%emt 0:04:26] Weighted Error Value: White=0.05 (flawless) /Black=0.05 (flawless)} 1/2-1/2

[Event "Romanian Superleague 2022"]
[Site "Oradea"]
[Date "2022.09.22"]
[Round "2.4"]
[White "Nevednichy, Vladislav"]
[Black "Cosma, Ioan"]
[Result "1-0"]
[ECO "B42"]
[WhiteElo "2472"]
[BlackElo "2367"]
[Annotator "TA"]
[PlyCount "40"]
[EventDate "2022.09.21"]
[EventType "team-tourn"]
[EventCountry "ROU"]
[SourceTitle "playchess.com"]
[Source "ChessBase"]
[SourceQuality "1"]
[TimeControl "40/5400+30:1800+30"]

{[%evp 12,40,45,42,46,18,64,33,39,39,47,44,60,55,58,61,67,57,95,91,254,242,342,327,318,310,306,306,332,269,221]} 1. e4 {[%emt 0:00:03]} c5 {[%emt 0:00:43]} 2. Nf3 {[%emt 0:00:06][%cal Bg1f3,Bf3d4,Bd4b3][%mdl 32]} e6 {[%emt 0:00:07]} 3. d4 {[%emt 0:00:08]} cxd4 {[%emt 0:00:11]} 4. Nxd4 {[%emt 0:00:02]} a6 {[%emt 0:00:36]} 5. Bd3 {[%emt 0:00:22]} Ne7 {[%emt 0:00:23]} 6. O-O {[%emt 0:01:41]} Nbc6 {[%emt 0:00:12]} 7. Nb3 {[%emt 0:01:30]} d5 {[%emt 0:04:39] B42: Sicilian: Kan Variation: 5 Bd3.} 8. Qe2 {[%emt 0:11:38]} Qc7 {[%emt 0:12:20] [#]} (8... g6 $11) 9. Nc3 $146 {[%emt 0:15:35] [#] Strongly threatening exd5.} ({Predecessor:} 9. Kh1 dxe4 10. Bxe4 g6 11. Bd2 Bg7 12. Bc3 e5 13. f4 O-O 14. fxe5 Nxe5 15. Qf2 {1-0 (41) Zapata,A (2545)-Mascarinas,R (2465) Manila 1990}) 9... d4 {[%emt 0:01:37] White is slightly better.} 10. Nb1 {[%emt 0:03:17]} Ng6 {[%emt 0:06:58]} 11. f4 {[%emt 0:01:47][%cal Bf2f4,Bf4f5][%mdl 32]} e5 {[%emt 0:03:55][%cal Re5f4]} 12. f5 {[%emt 0:06:27]} Nf4 {[%emt 0:00:08]} 13. Bxf4 {[%emt 0:05:38]} exf4 {[%emt 0:00:07]} 14. N1d2 {[%emt 0:05:06][%cal Oe4e5]} g5 {[%emt 0:05:01]} 15. e5 {[%emt 0:06:23]} Kd8 $2 {[%emt 0:17:01] This move loses the game for Black.} (15... Qxe5 $2 16. Be4 Bg7 17. Qh5 $18) (15... Nxe5 $16 {was called for.} 16. Nf3 Bd6) 16. Rfe1 $18 {[%emt 0:05:54]} Bb4 {[%emt 0:02:50]} (16... h6 $142 17. a3 b6) 17. c3 {[%emt 0:11:23] White has a decisive advantage.} ({Weaker is} 17. a3 Bxd2 18. Nxd2 Qe7 $18) 17... dxc3 {[%emt 0:00:44]} 18. bxc3 {[%emt 0:00:10]} Bxc3 {[%emt 0:06:48]} 19. Rac1 {[%emt 0:00:32]} Bb4 {[%emt 0:06:45]} 20. Qe4 {[%emt 0:04:45][%cal Oc1c6] [#] Hoping for Rxc6! The board is on fire.} a5 {[%emt 0:02:57] Weighted Error Value: White=0.14 (very precise) /Black=0.41} 1-0

[Event "Romanian Superleague 2022"]
[Site "Oradea"]
[Date "2022.09.22"]
[Round "2.5"]
[White "Itkis, Boris"]
[Black "Stoleriu, George"]
[Result "1/2-1/2"]
[ECO "E62"]
[WhiteElo "2332"]
[BlackElo "2392"]
[Annotator "TA"]
[PlyCount "55"]
[EventDate "2022.09.21"]
[EventType "team-tourn"]
[EventCountry "ROU"]
[SourceTitle "playchess.com"]
[Source "ChessBase"]
[SourceQuality "1"]
[TimeControl "40/5400+30:1800+30"]

{[%evp 21,55,10,19,14,29,27,27,27,27,23,38,30,28,28,28,28,28,28,28,28,28,28,29,30,33,32,35,29,31,28,28,28,30,30,26,25]} 1. Nf3 {[%emt 0:00:05]} Nf6 {[%emt 0:00:07]} 2. c4 {[%emt 0:00:07]} g6 {[%emt 0:00:05]} 3. g3 {[%emt 0:00:33]} Bg7 {[%emt 0:00:04]} 4. Bg2 {[%emt 0:00:05]} O-O {[%emt 0:00:04]} 5. d4 {[%emt 0:00:48]} d6 {[%emt 0:00:06]} 6. Nc3 {[%emt 0:00:06]} c6 {[%emt 0:00:31]} 7. O-O {[%emt 0:03:17]} Bf5 {[%emt 0:00:14]} 8. b3 {[%emt 0:02:59]} Ne4 {[%emt 0:00:10]} 9. Bb2 {[%emt 0:00:06]} Nxc3 {[%emt 0:00:05]} 10. Bxc3 {[%emt 0:00:06]} Be4 {[%emt 0:00:02]} 11. e3 {[%emt 0:00:08]} Nd7 {[%emt 0:02:13][%cal Bb8d7,Bd7f6,Bf6e4][%mdl 32]} 12. Qe2 {[%emt 0:01:58] E62: King's Indian: Fianchetto: 6...c6 and Panno Variation (6...Nc6) without ...a6.} d5 {[%emt 0:02:56]} 13. Rfd1 {[%emt 0:01:27]} a5 {[%emt 0:00:19]} 14. Bf1 {[%emt 0:13:14]} Bxf3 {[%emt 0:00:33]} 15. Qxf3 {[%emt 0:00:07]} Nf6 {[%emt 0:00:07] [#]} 16. a4 $146 {[%emt 0:02:57]} ({Predecessor:} 16. Qe2 Ne4 17. Be1 e6 18. Qc2 f5 19. Rab1 Rf7 20. b4 axb4 21. Rxb4 Bf8 22. Rb3 {½-½ (32) Zagorskis,D (2490)-Tratar,M (2499) Turin 2006}) 16... e6 {[%emt 0:07:21]} 17. Qe2 {[%emt 0:02:36]} Ne4 {[%emt 0:13:20]} 18. Bb2 {[%emt 0:11:34]} f5 {[%emt 0:04:43]} 19. Bg2 {[%emt 0:02:58]} Qb6 {[%emt 0:05:31]} 20. Qc2 {[%emt 0:00:27]} Rfe8 {[%emt 0:17:24]} 21. Rab1 {[%emt 0:03:40]} Rad8 {[%emt 0:04:21]} 22. f3 {[%emt 0:01:03]} Nf6 {[%emt 0:00:52]} 23. Bc3 {[%emt 0:00:38]} Qc7 {[%emt 0:05:42]} 24. Qd2 {[%emt 0:02:41]} Ra8 {[%emt 0:00:10]} 25. Re1 {[%emt 0:03:00]} Red8 {[%emt 0:03:35] White has an edge.} 26. Qb2 {[%emt 0:02:20]} Rd7 {[%emt 0:08:22]} 27. Rbd1 {[%emt 0:07:42]} Rad8 {[%emt 0:03:12]} 28. Bf1 {[%emt 0:37:48] Weighted Error Value: White=0.01 (flawless) /Black=0.02 (flawless)} 1/2-1/2